[Event "Uralsk-ch Women 2019"]
[Site "Khanty-Mansiysk"]
[Date "2019.03.18"]
[Round "7.2"]
[White "Voskresenskaya, Marta"]
[Black "Kabanova, Ekaterina"]
[Result "0-1"]
[ECO "A40"]
[WhiteElo "1980"]
[BlackElo "2086"]
[Annotator "NA RC"]
[PlyCount "84"]
[EventDate "2019.03.12"]
[EventType "swiss"]
[EventCountry "RUS"]
[SourceTitle "playchess.com"]
[Source "ChessBase"]
[SourceQuality "1"]
[TimeControl "5400+30"]

{[%evp 8,73,22,2,39,36,94,27,54,0,64,34,40,16,47,9,22,0,6,2,6,-56,-45,-75,-60,-93,-62,-83,32767,32767,32767,-117,-68,-75,-9,-113,-106,-106,32767,32767,0,-141,-153,-153,32767,-189,-153,32767,-150,32767,32767,32767,32767,32767,-216,-250,-189,-187,-262,-248,-281,-317,32767,-333,-417,-363,-421,-536]} 1. d4 {[%emt 0:00:00]} e6 {[%emt 0:01:12]} 2. c4 {[%emt 0:00:00]} b6 {[%emt 0:01:53]} 3. e4 {[%emt 0:00:14]} Bb7 {[%emt 0:01:34]} 4. Nc3 {[%emt 0:02:52]} Bb4 {[%emt 0:00:18]} 5. Qc2 {[%emt 0:00:32]} Ne7 {[%emt 0:02:17]} (5... c5 6. d5 f5 7. a3 Ba5 8. Bd2 fxe4 9. Nxe4 Bxd2+ 10. Qxd2 Qe7 11. O-O-O Nf6 12. Nc3 O-O 13. Nf3 {1-0 (83) Melkumyan,H (2660)-Lomasov,S (2540) Douglas 2018}) 6. Bd3 {[%emt 0:01:05] A40: Unusual replies to 1 d4} f5 {[%emt 0:00:27]} ({Black should play} 6... d5 $14) 7. Nge2 {[%emt 0:03:53]} O-O {[%emt 0:01:31]} 8. O-O {[%emt 0:00:21]} Nbc6 $146 {[%emt 0:08:07]} ({Predecessor:} 8... Bxc3 $5 9. bxc3 (9. Nxc3 Nbc6 $11) 9... Nbc6 $14 (9... h6 10. a4 Qe8 11. a5 Qf7 12. Ba3 d6 13. f3 {1-0 (32) Raupp,T (2310)-Mueller,R (2190) Germany 2013})) 9. Be3 {[%emt 0:16:29]} Bxc3 {[%emt 0:07:28]} 10. bxc3 {[%emt 0:00:42]} Qe8 {[%emt 0:00:38]} 11. f3 {[%emt 0:12:22]} Na5 {[%emt 0:01:18]} 12. Nc1 {[%emt 0:06:15]} fxe4 {[%emt 0:01:12]} 13. fxe4 {[%emt 0:00:48]} Rxf1+ {[%emt 0:00:06]} 14. Bxf1 {[%emt 0:00:02]} ({White should try} 14. Kxf1 $11 d5 15. cxd5 exd5 16. e5) 14... Ba6 {[%emt 0:03:05]} 15. Qa4 {[%emt 0:11:49]} d6 {[%emt 0:10:47]} 16. Qxe8+ {[%emt 0:00:12]} Rxe8 {[%emt 0:00:01]} 17. c5 {[%emt 0:00:15]} Bxf1 {[%emt 0:00:03]} 18. Kxf1 {[%emt 0:00:02]} Nc4 {[%emt 0:00:09]} 19. Ke2 {[%emt 0:01:05]} bxc5 {[%emt 0:01:38]} 20. dxc5 {[%emt 0:09:37] [#]} d5 {[%emt 0:00:43]} (20... Nd5 $1 $17 {[%mdl 512]} 21. Bg5 (21. exd5 exd5) 21... h6 22. Bxh6 Nxc3+ 23. Kd3 Nxe4 24. Kxe4 d5+ 25. Kd4 gxh6) 21. e5 {[%emt 0:02:00]} (21. Kd3 $15) 21... Nxe5 {[%emt 0:01:08]} 22. Rb1 {[%emt 0:00:29]} N7c6 {[%emt 0:04:04]} 23. Rb7 {[%emt 0:00:57]} Rb8 {[%emt 0:00:09]} ({Black should try} 23... Re7 $17 24. Nb3 Nc4) 24. Rxb8+ {[%emt 0:00:48]} (24. Rxc7 $11 {was the only way to keep the balance.} Rb2+ 25. Kf1) 24... Nxb8 {[%emt 0:00:04]} 25. Nb3 {[%emt 0:00:10]} Nec6 {[%emt 0:00:50]} 26. Nd4 {[%emt 0:00:55]} (26. c4 $17) 26... Nxd4+ {[%emt 0:00:10]} 27. cxd4 {[%emt 0:00:08]} Nc6 {[%emt 0:01:48]} 28. a3 {[%emt 0:01:53]} Kf7 {[%emt 0:00:38]} 29. Kd3 {[%emt 0:00:06]} e5 {[%emt 0:01:40]} 30. dxe5 {[%emt 0:01:24]} Ke6 {[%emt 0:02:19]} ({Resist} 30... Nxe5+ 31. Kd4 $17) 31. Bf4 {[%emt 0:01:53]} Nxe5+ {[%emt 0:00:48]} 32. Kd4 {[%emt 0:00:10]} Nc6+ {[%emt 0:00:03]} 33. Kd3 {[%emt 0:00:21]} Kd7 {[%emt 0:00:02]} 34. g4 {[%emt 0:01:02]} (34. Be3 {was called for.}) 34... Nd8 {[%emt 0:00:26]} 35. Kc3 {[%emt 0:06:19]} Ne6 {[%emt 0:03:00]} 36. Be3 {[%emt 0:00:06]} Kc6 $19 {[%emt 0:00:49]} 37. Kb4 {[%emt 0:00:48]} Nxc5 {[%emt 0:01:26]} 38. Bxc5 {[%emt 0:00:05]} a5+ {[%emt 0:00:01]} 39. Kxa5 {[%emt 0:00:15]} Kxc5 {[%emt 0:00:02]} 40. a4 {[%emt 0:00:30]} d4 {[%emt 0:00:17]} 41. Ka6 {[%emt 0:00:02]} d3 {[%emt 0:00:33]} 42. a5 {[%emt 0:00:04]} Kb4 {[%emt 0:00:33]} 0-1

[Event "Uralsk-ch Women 2019"]
[Site "Khanty-Mansiysk"]
[Date "2019.03.18"]
[Round "7.3"]
[White "Galina, Mironenko"]
[Black "Filippova, Darya"]
[Result "0-1"]
[ECO "C05"]
[WhiteElo "1911"]
[BlackElo "2099"]
[Annotator "NA RC"]
[PlyCount "100"]
[EventDate "2019.03.12"]
[EventType "swiss"]
[EventCountry "RUS"]
[SourceTitle "playchess.com"]
[Source "ChessBase"]
[SourceQuality "1"]
[TimeControl "5400+30"]

{[%evp 8,99,39,5,20,14,24,-60,-58,-55,-59,-61,-39,-54,0,-16,-2,0,0,0,0,-16,-18,-5,0,-32,-40,-33,-29,-75,-52,-88,-90,-80,-68,-95,32767,32767,-21,-158,-135,-167,-168,-124,-154,-162,-174,-206,32767,32767,-267,-274,-277,-268,32767,32767,32767,32767,32767,32767,32767,32767,32767,32767,32767,32767,-205,32767,-268,-350,32767,32767,-263,-253,-274,-345,-235,-372,-370,-369,-375,-387,-366,-387,-376,-385,-374,-402,-393,-408,-481,-4910,32767,-29988]} 1. e4 {[%emt 0:00:00]} e6 {[%emt 0:00:00]} 2. d4 {[%emt 0:00:00]} d5 {[%emt 0:00:00]} 3. Nd2 {[%emt 0:00:32]} Nf6 {[%emt 0:00:01]} 4. e5 {[%emt 0:00:05]} Nfd7 {[%emt 0:00:07]} 5. Ngf3 {[%emt 0:00:43]} c5 {[%emt 0:00:36]} 6. c3 {[%emt 0:03:58]} Nc6 {[%emt 0:00:27]} 7. Bb5 {[%emt 0:04:19] LiveBook: 4 Games} ({White should try} 7. Bd3 $11) 7... Qb6 {[%emt 0:00:49]} 8. Bxc6 {[%emt 0:09:03] C05: French Tarrasch: 3...Nf6 4 e5 Nfd7, 5 f4 and 5 Bd3 sidelines} bxc6 {[%emt 0:00:17]} 9. O-O {[%emt 0:02:17]} cxd4 {[%emt 0:01:17]} 10. cxd4 {[%emt 0:00:15]} c5 {[%emt 0:02:26]} 11. dxc5 {[%emt 0:11:32]} Nxc5 {[%emt 0:00:55]} 12. Nb3 {[%emt 0:08:00]} Ba6 {[%emt 0:15:49]} 13. Re1 $1 {[%emt 0:06:37]} Bc4 $146 {[%emt 0:00:50]} ({Predecessor:} 13... Nxb3 14. Qxb3 Bc5 15. Be3 Bxe3 16. Rxe3 Qxb3 17. axb3 {1-0 (45) Sargalski,A (1968)-Pawelec,B (2036) Mielno 2010}) 14. Be3 {[%emt 0:03:47]} Bxb3 {[%emt 0:06:44]} 15. axb3 {[%emt 0:00:38]} Be7 {[%emt 0:04:46]} 16. Ra4 {[%emt 0:10:05]} Qb7 {[%emt 0:02:34]} 17. Rg4 {[%emt 0:01:27]} g6 {[%emt 0:03:54]} 18. Bxc5 {[%emt 0:06:14]} Bxc5 {[%emt 0:00:08]} 19. b4 {[%emt 0:00:12]} Be7 {[%emt 0:04:02]} 20. Qa4+ {[%emt 0:02:11]} Kf8 {[%emt 0:01:42]} 21. Nd4 {[%emt 0:03:19]} h5 {[%emt 0:07:33]} 22. Rf4 {[%emt 0:03:28]} Kg7 {[%emt 0:05:48]} 23. Nc6 {[%emt 0:06:39]} (23. h4 $15) 23... Bg5 {[%emt 0:01:01]} 24. Rf3 {[%emt 0:04:28]} Rhc8 {[%emt 0:00:43]} 25. Na5 {[%emt 0:00:37]} Qb6 {[%emt 0:02:52]} 26. Qd7 {[%emt 0:02:29]} Rf8 {[%emt 0:00:22]} 27. Nb7 {[%emt 0:04:14]} Qxb4 {[%emt 0:02:43]} 28. Rf1 {[%emt 0:00:23]} Rae8 {[%emt 0:04:30]} 29. Nd6 {[%emt 0:01:19]} Re7 {[%emt 0:00:11]} 30. Qc6 {[%emt 0:00:05]} Qb8 {[%emt 0:06:58]} 31. b4 {[%emt 0:04:20]} Rc7 {[%emt 0:00:48]} 32. Qa4 {[%emt 0:00:42]} Be7 {[%emt 0:01:00]} 33. Re1 {[%emt 0:01:55]} Bxd6 {[%emt 0:02:54]} 34. exd6 {[%emt 0:00:07]} Rb7 {[%emt 0:00:41]} 35. Qa1+ {[%emt 0:00:47]} Kg8 {[%emt 0:01:00]} 36. Qe5 {[%emt 0:00:38]} Rd7 {[%emt 0:01:57]} 37. Rg3 {[%emt 0:00:30]} Qxd6 {[%emt 0:00:31]} 38. Qg5 {[%emt 0:00:31]} Qxb4 {[%emt 0:01:02]} 39. Rf1 {[%emt 0:00:07]} Qd6 {[%emt 0:02:14]} 40. Rh3 {[%emt 0:00:21]} Qe7 {[%emt 0:00:32]} 41. Qh6 {[%emt 0:00:20]} Qf6 {[%emt 0:01:03]} 42. g4 {[%emt 0:00:50]} (42. Rxh5 {was necessary.} Qg7 43. Qxg7+ Kxg7 44. Rh3) 42... Qg7 {[%emt 0:00:17]} 43. Qg5 {[%emt 0:00:37]} hxg4 {[%emt 0:00:24]} 44. Qxg4 {[%emt 0:00:04]} d4 {[%emt 0:00:14]} 45. Rd1 {[%emt 0:00:07]} Rfd8 {[%emt 0:00:11]} 46. Rdd3 {[%emt 0:00:06]} Rd5 {[%emt 0:00:31]} 47. Qh4 {[%emt 0:00:43]} Rc8 {[%emt 0:00:57]} 48. Qg4 {[%emt 0:00:20]} Qf6 {[%emt 0:00:39]} 49. Rdg3 {[%emt 0:00:28] [#]} (49. Qe4 $142) 49... d3 $1 {[%emt 0:01:38]} 50. Rf3 {[%emt 0:00:57]} Rg5 {[%emt 0:00:38]} 0-1

[Event "Uralsk-ch Women 2019"]
[Site "Khanty-Mansiysk"]
[Date "2019.03.19"]
[Round "8.1"]
[White "Vinokur, Yuliya"]
[Black "Kabanova, Ekaterina"]
[Result "1-0"]
[ECO "A56"]
[WhiteElo "2076"]
[BlackElo "2086"]
[Annotator "NA RC"]
[PlyCount "93"]
[EventDate "2019.03.12"]
[EventType "swiss"]
[EventCountry "RUS"]
[SourceTitle "playchess.com"]
[Source "ChessBase"]
[SourceQuality "1"]
[TimeControl "5400+30"]

{[%evp 8,93,84,87,76,81,76,68,102,97,106,110,115,118,128,126,116,73,64,74,60,-8,-20,-16,-16,-17,-10,-80,34,29,36,64,62,-7,0,0,37,22,57,0,0,0,88,24,149,114,120,118,157,104,63,0,159,143,165,153,152,160,188,169,181,127,205,228,215,243,256,241,446,497,473,573,499,592,595,754,848,755,1747,780,1173,1360,29989,29990,29995,29996,29997,29998]} 1. d4 {[%emt 0:00:00]} Nf6 {[%emt 0:00:00]} 2. c4 {[%emt 0:00:05]} c5 {[%emt 0:00:09]} 3. d5 {[%emt 0:01:41]} e5 {[%emt 0:01:02]} 4. Nc3 {[%emt 0:03:04]} d6 {[%emt 0:02:46] LiveBook: 2513 Games} 5. e4 {[%emt 0:00:10]} Be7 {[%emt 0:00:08]} 6. Bd3 {[%emt 0:02:16]} O-O {[%emt 0:00:50]} 7. Nge2 {[%emt 0:00:14]} Nbd7 {[%emt 0:00:52]} 8. Ng3 {[%emt 0:05:11] A56: Czech Benoni} (8. O-O Ne8 9. a3 Bg5 10. b4 Bxc1 11. Qxc1 b6 12. Rb1 cxb4 13. axb4 a5 14. Qc2 axb4 15. Rxb4 Nc5 16. Na4 Bd7 17. Nxb6 Ra3 18. Nc3 Nf6 19. Rfb1 {1-0 (54) Anand,V (2801)-Korotylev,A (2600) Moscow 2007}) 8... Ne8 {[%emt 0:01:07]} 9. h4 {[%emt 0:11:35]} Ndf6 {[%emt 0:05:54]} 10. Nf5 {[%emt 0:07:12]} Bxf5 {[%emt 0:11:07]} 11. exf5 {[%emt 0:00:32]} e4 $146 {[%emt 0:00:30]} ({Predecessor:} 11... b5 12. Nxb5 e4 13. Bc2 h5 14. Nc3 e3 15. Bxe3 Ng4 {1-0 (38) Bertok,M (2375)-Koch,R Reggio Emilia 1982}) 12. Bxe4 {[%emt 0:07:47]} ({Don't play} 12. Nxe4 $6 Nxe4 13. Bxe4 b5 $11) ({White should try} 12. Be2) 12... Nxe4 {[%emt 0:02:44]} 13. Nxe4 {[%emt 0:00:08]} Nf6 {[%emt 0:00:07]} 14. Ng5 {[%emt 0:02:26]} (14. Nc3 $16) 14... b5 {[%emt 0:03:52]} 15. b3 {[%emt 0:03:49]} bxc4 {[%emt 0:00:09]} 16. bxc4 {[%emt 0:00:24]} h6 {[%emt 0:03:04]} 17. Be3 {[%emt 0:06:26]} (17. Nf3 $11) 17... Nd7 {[%emt 0:04:00]} ({And not} 17... hxg5 18. hxg5 Re8 19. Kf1 $16 (19. gxf6 Bxf6 20. Qh5 Kf8 $16)) ({Black should play} 17... Rb8 $15) 18. Nf3 {[%emt 0:01:25]} Bf6 {[%emt 0:02:44]} 19. Rc1 {[%emt 0:00:27]} Rb8 {[%emt 0:01:39]} 20. g4 {[%emt 0:05:37]} ({White should try} 20. Kf1 $14) 20... Re8 {[%emt 0:00:46]} 21. Kf1 {[%emt 0:02:52]} Bb2 {[%emt 0:05:52]} 22. Rc2 {[%emt 0:04:57]} Qe7 {[%emt 0:00:34]} 23. Nd2 {[%emt 0:05:50]} (23. Qd3 $14) 23... Bd4 {[%emt 0:03:07]} 24. Bf4 {[%emt 0:04:01]} Qf6 {[%emt 0:06:05]} (24... Ne5 $11 25. Kg2 Nd3) 25. Qf3 {[%emt 0:03:46]} (25. Kg2 $16) 25... Rb6 {[%emt 0:10:20]} (25... Be5 $1 $11 {remains equal.}) 26. Kg2 {[%emt 0:03:46]} Qe7 {[%emt 0:04:04]} 27. g5 {[%emt 0:02:29]} Kh7 $1 $11 {[%emt 0:08:01]} 28. Qh5 {[%emt 0:02:39]} Qe2 {[%emt 0:12:02]} 29. Qf3 {[%emt 0:03:33]} (29. g6+ $16 fxg6 30. Qxg6+ {[%mdl 64] Double Attack} Kg8 31. Nf3 Qxc2 32. Qxe8+ {[%mdl 64] Double Attack} Nf8 33. Nxd4 cxd4 34. f6 Qg6+ 35. Qxg6 Nxg6 36. Bg3) 29... h5 $2 {[%emt 0:02:13]} 30. Bg3 {[%emt 0:01:27]} f6 {[%emt 0:05:31]} 31. Qxe2 {[%emt 0:02:38]} Rxe2 {[%emt 0:00:02]} 32. Kf3 {[%emt 0:00:06]} Re8 {[%emt 0:00:08]} 33. Ne4 {[%emt 0:01:29]} Be5 {[%emt 0:00:48]} 34. Re1 {[%emt 0:01:04]} Reb8 {[%emt 0:01:46]} (34... fxg5 $16 {might work better.} 35. Nxg5+ (35. hxg5 Rf8 $14) 35... Kg8) 35. Bxe5 {[%emt 0:01:23]} Nxe5+ {[%emt 0:01:23]} 36. Kg2 {[%emt 0:00:09]} fxg5 {[%emt 0:01:50]} 37. hxg5 {[%emt 0:00:36]} ({Weaker is} 37. Nxg5+ Kg8 $16) 37... Nd3 $2 {[%emt 0:00:08]} (37... Rf8 {keeps fighting.} 38. f6 Ng6) 38. Re3 {[%emt 0:00:56]} Nb4 {[%emt 0:00:00]} 39. Rce2 {[%emt 0:00:09]} Rf8 {[%emt 0:00:09]} 40. Rf3 {[%emt 0:03:12]} Na6 {[%emt 0:00:00]} 41. Re1 {[%emt 0:00:22]} Kg8 {[%emt 0:01:08]} 42. Rh1 {[%emt 0:00:31]} Rb4 {[%emt 0:01:07]} 43. Nxd6 {[%emt 0:01:21]} (43. g6 $142 Rd8 44. Rfh3) 43... Rd8 {[%emt 0:00:03]} 44. f6 {[%emt 0:00:48]} g6 {[%emt 0:00:18]} 45. f7+ {[%emt 0:00:39]} Kf8 {[%emt 0:00:19]} 46. Re1 {[%emt 0:00:08]} Nc7 {[%emt 0:01:46]} 47. Re8+ {[%emt 0:00:18]} 1-0

[Event "Uralsk-ch Women 2019"]
[Site "Khanty-Mansiysk"]
[Date "2019.03.19"]
[Round "8.2"]
[White "Mukhina, Jana"]
[Black "Anastasia, Semenova"]
[Result "1-0"]
[ECO "C55"]
[WhiteElo "2038"]
[BlackElo "1747"]
[Annotator "NA RC"]
[PlyCount "43"]
[EventDate "2019.03.12"]
[EventType "swiss"]
[EventCountry "RUS"]
[SourceTitle "playchess.com"]
[Source "ChessBase"]
[SourceQuality "1"]
[TimeControl "5400+30"]

{[%evp 8,43,0,-26,80,66,409,428,436,412,425,439,421,395,407,426,890,903,894,881,1423,1239,1193,1260,1353,1318,1460,1342,1652,1596,1640,1739,2081,1803,1756,1850,2258,1899]} 1. e4 {[%emt 0:00:00]} e5 {[%emt 0:00:00]} 2. d4 {[%emt 0:00:00]} exd4 {[%emt 0:00:00]} 3. Nf3 {[%emt 0:00:00]} Nc6 {[%emt 0:07:26]} 4. Bc4 {[%emt 0:00:08]} Nf6 {[%emt 0:08:35]} 5. O-O {[%emt 0:06:39]} d5 {[%emt 0:03:16]} (5... Nxe4 $11 {remains equal.} 6. Nxd4 d5) 6. exd5 {[%emt 0:01:53] C56: Two Knights: 4 d4 exd4 5 0-0 Nxe4} Na5 $2 {[%emt 0:06:00]} ({Better is} 6... Nb4 $14) 7. Qe1+ {[%emt 0:01:12] Double Attack} Be7 {[%emt 0:00:45]} 8. Qxa5 {[%emt 0:00:07]} O-O {[%emt 0:01:54]} 9. Nxd4 $146 {[%emt 0:02:58]} ({Predecessor:} 9. Bf4 b6 10. Qd2 Nxd5 11. Qxd4 Bb7 12. Bxd5 Bxd5 13. Qd3 Bb7 14. Qxd8 Rfxd8 {1-0 (37) Klimek,M (1681)-Garus,J Gora Sw Anny 2009}) 9... Bd6 {[%emt 0:02:59]} 10. Nf3 {[%emt 0:02:38]} Bg4 {[%emt 0:06:03]} 11. Nbd2 {[%emt 0:00:12]} Ne4 {[%emt 0:07:51]} (11... a6 $142 12. Qc3 Re8) 12. Nxe4 {[%emt 0:00:52]} Bxf3 {[%emt 0:00:05]} 13. Nxd6 {[%emt 0:00:38]} f5 {[%emt 0:07:23]} 14. Nxf5 {[%emt 0:03:51] Clearance} Kh8 {[%emt 0:01:17]} 15. Ng3 {[%emt 0:01:30]} Qh4 {[%emt 0:01:19]} 16. Qc3 {[%emt 0:01:40]} Qg4 {[%emt 0:04:04]} 17. Be3 {[%emt 0:04:36]} h5 {[%emt 0:03:24]} 18. gxf3 {[%emt 0:00:28]} Rxf3 {[%emt 0:00:25]} 19. Be2 {[%emt 0:01:10] Skewer} Raf8 {[%emt 0:04:57]} 20. Bxf3 {[%emt 0:00:33]} Rxf3 {[%emt 0:00:04]} 21. Qe5 {[%emt 0:00:31]} h4 {[%emt 0:00:28]} 22. Qe8+ $18 {[%emt 0:00:28]} 1-0

[Event "Uralsk-ch Women 2019"]
[Site "Khanty-Mansiysk"]
[Date "2019.03.19"]
[Round "8.3"]
[White "Garifullina, Leya"]
[Black "Filippova, Darya"]
[Result "1/2-1/2"]
[ECO "B12"]
[WhiteElo "2095"]
[BlackElo "2099"]
[Annotator "NA RC"]
[PlyCount "67"]
[EventDate "2019.03.12"]
[EventType "swiss"]
[EventCountry "RUS"]
[SourceTitle "playchess.com"]
[Source "ChessBase"]
[SourceQuality "1"]
[TimeControl "5400+30"]

{[%evp 8,67,28,14,32,16,57,44,46,41,50,38,50,45,38,50,66,51,53,53,74,66,140,157,160,133,131,56,57,29,32,41,24,16,199,225,311,278,393,75,60,0,0,0,0,-12,0,0,6,11,2,0,0,0,0,0,0,0,0,0,0,0]} 1. e4 {[%emt 0:00:00]} c6 {[%emt 0:00:00]} 2. d4 {[%emt 0:00:00]} d5 {[%emt 0:00:00]} 3. e5 {[%emt 0:00:00]} Bf5 {[%emt 0:00:00]} 4. h4 {[%emt 0:00:10]} Qc7 {[%emt 0:00:28]} 5. Nc3 {[%emt 0:04:20]} h6 {[%emt 0:06:37]} 6. g4 {[%emt 0:06:19] B12: Caro-Kann: Advance Variation} Bd7 {[%emt 0:00:33]} 7. h5 {[%emt 0:05:44]} e6 {[%emt 0:00:32]} 8. f4 {[%emt 0:03:59]} c5 {[%emt 0:01:54]} 9. Nf3 {[%emt 0:03:42]} a6 {[%emt 0:03:57]} 10. Ne2 $146 {[%emt 0:04:47]} ({Predecessor:} 10. Be3 cxd4 11. Nxd4 Nc6 12. Qd2 {1-0 (48) Anton Guijarro,D (2627)-Dreev,A (2664) Almaty 2016}) 10... cxd4 {[%emt 0:00:43]} 11. Nexd4 {[%emt 0:00:21]} Bc5 {[%emt 0:01:12]} 12. c3 {[%emt 0:01:15]} Nc6 {[%emt 0:06:13]} 13. Be3 {[%emt 0:02:00]} Ba7 {[%emt 0:01:13]} 14. Bd3 {[%emt 0:02:03]} f6 {[%emt 0:08:33]} (14... Nge7 $14) 15. Bg6+ {[%emt 0:02:55]} Kd8 {[%emt 0:03:12]} 16. Qe2 {[%emt 0:05:11]} Nge7 {[%emt 0:05:43]} 17. Bf7 {[%emt 0:17:22]} ({White should try} 17. Nxc6+ $16 bxc6 18. Bxa7 (18. Qxa6 Qb8 $16) 18... Rxa7 19. O-O-O) 17... fxe5 {[%emt 0:12:19]} 18. fxe5 {[%emt 0:05:38]} Nxd4 {[%emt 0:00:20]} 19. Nxd4 {[%emt 0:02:47]} Bxd4 {[%emt 0:00:08]} 20. Bxd4 {[%emt 0:01:32]} ({Much worse is} 20. cxd4 Rf8 $17) 20... Rf8 $2 {[%emt 0:00:35]} (20... Nc6 $1 $11 21. Bg6 Nxd4 22. cxd4 Rf8) 21. Qe3 {[%emt 0:04:23]} Qc4 {[%emt 0:01:58]} ({Much worse is} 21... Rxf7 22. Bb6 $18) 22. b3 {[%emt 0:05:23]} Qb5 {[%emt 0:01:18]} 23. Bg6 $2 {[%emt 0:01:30]} (23. Bb6+ $18 {is more deadly.} Kc8 24. Rf1) 23... Nxg6 {[%emt 0:00:44]} 24. hxg6 {[%emt 0:00:07]} (24. Bb6+ $16 Kc8 25. hxg6) 24... Rc8 $1 {[%emt 0:03:46]} 25. Kd2 {[%emt 0:02:33]} Be8 {[%emt 0:00:37]} 26. g5 {[%emt 0:00:55]} h5 {[%emt 0:00:08]} 27. a4 {[%emt 0:03:05]} Qxb3 {[%emt 0:03:49]} 28. Rhb1 {[%emt 0:01:34]} Qc4 {[%emt 0:00:26]} 29. Rxb7 {[%emt 0:00:32]} Bxg6 {[%emt 0:00:23]} ({Don't blunder} 29... Bxa4 $2 30. Rb4 $18 {[%mdl 64] Double Attack}) 30. Rb4 {[%emt 0:03:15]} Qc6 {[%emt 0:01:44]} 31. Rb6 {[%emt 0:00:54]} Qc4 {[%emt 0:03:56]} 32. Rb4 {[%emt 0:03:52]} Qc6 {[%emt 0:00:18]} 33. Rb6 {[%emt 0:01:32]} Qc4 {[%emt 0:00:57]} 34. Rb4 $11 {[%emt 0:01:01]} 1/2-1/2

[Event "Uralsk-ch Women 2019"]
[Site "Khanty-Mansiysk"]
[Date "2019.03.20"]
[Round "9.1"]
[White "Mukhina, Jana"]
[Black "Karelina, Viktoriya"]
[Result "1/2-1/2"]
[ECO "C77"]
[WhiteElo "2038"]
[BlackElo "1755"]
[Annotator "NA RC"]
[PlyCount "68"]
[EventDate "2019.03.12"]
[EventType "swiss"]
[EventCountry "RUS"]
[SourceTitle "playchess.com"]
[Source "ChessBase"]
[SourceQuality "1"]
[TimeControl "5400+30"]

{[%evp 8,68,16,22,22,28,15,13,21,32,33,20,24,5,12,4,39,22,79,87,90,93,84,31,37,43,53,39,52,34,58,56,65,57,58,28,58,6,0,8,72,15,19,0,-2,-19,-23,-17,0,-49,-26,-64,-15,-18,0,0,0,0,0,0,0,0,0]} 1. e4 {[%emt 0:01:03]} e5 {[%emt 0:00:00]} 2. Nf3 {[%emt 0:00:22]} Nc6 {[%emt 0:00:00]} 3. Bb5 {[%emt 0:00:18]} a6 {[%emt 0:00:00]} 4. Ba4 {[%emt 0:00:10]} Nf6 {[%emt 0:00:09]} 5. d3 {[%emt 0:01:21]} b5 {[%emt 0:00:24]} 6. Bb3 {[%emt 0:00:06]} Be7 {[%emt 0:00:06]} 7. a4 {[%emt 0:00:13]} Bb7 {[%emt 0:00:22]} 8. O-O {[%emt 0:01:25]} d6 {[%emt 0:02:49] LiveBook: 93 Games} 9. Nc3 {[%emt 0:05:37]} Na5 {[%emt 0:14:04]} 10. Ba2 {[%emt 0:01:03] C84: Closed Ruy Lopez: Unusual White 6th moves} b4 {[%emt 0:00:06]} 11. Ne2 {[%emt 0:01:34]} b3 {[%emt 0:03:28]} (11... O-O 12. Ng3 c5 13. Nf5 Bc8 14. N3h4 Ne8 15. Nxe7+ Qxe7 16. Bd5 Qxh4 17. Bxa8 Nc7 18. Bd5 Nxd5 19. exd5 {½-½ (55) Karthikeyan,M (2578)-Bu,X (2711) Liaocheng 2017}) 12. cxb3 {[%emt 0:01:14]} c5 {[%emt 0:00:07]} 13. b4 {[%emt 0:08:26]} cxb4 {[%emt 0:01:08]} 14. Bd2 {[%emt 0:00:21]} Nc6 $146 {[%emt 0:22:56]} ({Predecessor:} 14... Qb6 15. Be3 Qd8 16. Ng3 O-O 17. Nf5 Bc8 18. Nxe7+ Qxe7 {1-0 (40) Rivera Kuzawka,D (2330)-Salgado Lopez,I (2174) Mondariz 2003}) 15. Qb3 {[%emt 0:10:10]} O-O {[%emt 0:00:10]} 16. Bxb4 {[%emt 0:00:32]} Nxb4 {[%emt 0:00:37]} 17. Qxb4 {[%emt 0:00:05]} Rb8 {[%emt 0:01:43]} 18. Qd2 {[%emt 0:01:56]} h6 {[%emt 0:06:46]} 19. Ng3 {[%emt 0:03:33]} Re8 {[%emt 0:02:06]} 20. b4 {[%emt 0:09:53]} Bf8 {[%emt 0:11:54]} 21. Rfe1 {[%emt 0:15:19]} Bc6 {[%emt 0:04:23]} 22. Rab1 {[%emt 0:00:30]} (22. d4 $16) 22... Qd7 $1 {[%emt 0:01:08]} 23. a5 {[%emt 0:02:56]} Qb7 {[%emt 0:10:41]} (23... d5 $1 $11 {remains equal.}) 24. Qd1 {[%emt 0:14:33]} (24. Qb2 $16) 24... d5 {[%emt 0:04:14]} 25. exd5 {[%emt 0:02:34]} Bxd5 {[%emt 0:01:20]} 26. Bxd5 {[%emt 0:03:02]} Qxd5 {[%emt 0:01:44]} 27. Ne4 {[%emt 0:00:35]} Nxe4 {[%emt 0:04:24]} 28. dxe4 {[%emt 0:00:49]} Qc4 {[%emt 0:03:31]} 29. Qd5 {[%emt 0:02:50]} Rxb4 {[%emt 0:00:46]} 30. Rxb4 {[%emt 0:00:46]} Qxb4 {[%emt 0:00:46]} 31. Rd1 {[%emt 0:00:40]} Qb2 {[%emt 0:01:10]} 32. Rd2 {[%emt 0:00:19]} Qb1+ {[%emt 0:00:18]} 33. Rd1 {[%emt 0:00:04]} Qb2 {[%emt 0:00:04]} 34. Rd2 {[%emt 0:00:26]} Qb1+ $11 {[%emt 0:00:57]} 1/2-1/2